bitfinex-derivatives/quotes_ETHF0:USTF0_20241026
["timestamp","ask_amount","ask_price","bid_price","bid_amount"]
[1729938521203,5.3593018,2473.9,2473.7,0.83281]
[1729938522805,1.3145018,2473.8,2473.7,0.83281]
[1729938523104,4.5223018,2473.8,2473.7,0.95936577]
[1729938523905,4.5223018,2473.8,2473.7,0.55465577]
[1729938526099,4.5223018,2473.8,2473.7,0.55465699]
[1729938526298,4.5223018,2473.8,2473.7,0.55465696]
[1729938526707,1.3145018,2473.8,2473.7,0.55465696]
[1729938527109,4.5223018,2473.8,2473.7,0.55465696]
[1729938530202,4.5223018,2473.8,2473.7,0.55465792]
[1729938531411,4.5223018,2473.8,2473.7,1.61417342]
[1729938531612,4.5223018,2473.8,2473.7,0.55465792]
[1729938533509,1.3145018,2473.8,2473.7,0.55465792]
[1729938534315,1.3145018,2473.8,2473.7,0.55465393]
[1729938534908,5.3593018,2473.9,2473.7,1.61416943]
[1729938535105,0.40458,2474.1,2473.8,1.3145018]
[1729938535309,3.2078,2474.2,2474.0,1.3145018]
[1729938535512,4.9268518,2474.2,2474.1,0.4491]
[1729938535913,4.9268518,2474.2,2474.1,0.5756312]
[1729938536407,4.9268518,2474.2,2474.1,0.4491]
[1729938536613,1.7190518,2474.2,2474.1,0.4491]
[1729938537213,0.40458,2474.0,2473.9,1.0595155]
[1729938537405,1.3145018,2474.0,2473.9,1.62364874]
[1729938538019,1.7190818,2474.0,2473.9,1.62364874]
[1729938541021,1.7190818,2474.0,2473.9,1.4971155]
[1729938541321,1.7190818,2474.0,2473.9,1.62364628]
[1729938541521,0.40458,2474.0,2473.9,0.56413078]
[1729938541721,0.40458,2474.0,2473.9,1.62364628]
[1729938542216,0.40458,2474.0,2473.9,0.56413078]
[1729938543424,0.40458,2474.0,2473.9,0.4376]
[1729938547830,1.3145018,2474.0,2473.8,1.05924578]
[1729938548029,1.7191018,2473.9,2473.8,3.2078]
[1729938549829,0.40462,2473.8,2473.6,2.82554758]
[1729938550130,1.65322,2473.8,2473.6,6.03334758]
[1729938550422,1.65322,2473.8,2473.6,2.82554758]
[1729938550623,1.2486,2473.8,2473.6,2.82554758]
[1729938550828,0.40463,2473.7,2473.6,6.03334758]
[1729938551025,0.40463,2473.7,2473.6,6.15988908]
[1729938551427,2.9677318,2473.8,2473.6,6.15988908]
[1729938551617,2.5631018,2473.8,2473.6,6.03334758]
[1729938551823,0.40463,2473.7,2473.6,4.9741018]
[1729938552022,0.45603789,2473.7,2473.6,5.10064364]
[1729938552630,0.45603789,2473.7,2473.6,4.9741018]
[1729938552833,0.45603789,2473.7,2473.6,5.10064373]
[1729938553632,0.05140789,2473.7,2473.6,6.15988951]
[1729938555635,0.05140789,2473.7,2473.6,2.95208951]
[1729938556132,0.05140789,2473.7,2473.6,6.15988951]
[1729938557332,0.05140789,2473.7,2473.6,6.15988743]
[1729938558232,0.05140789,2473.7,2473.6,7.81719231]
[1729938559037,0.05140789,2473.7,2473.6,4.60939231]
[1729938559434,0.05140789,2473.7,2473.6,7.81719231]
[1729938561339,0.05140789,2473.7,2473.6,7.81721765]
[1729938561543,0.05140789,2473.7,2473.6,4.60941765]
[1729938561744,0.05140789,2473.7,2473.6,7.81721765]
[1729938562345,0.05140789,2473.7,2473.6,4.60941765]
[1729938562540,0.05140789,2473.7,2473.6,7.81721765]
[1729938563242,0.05140789,2473.7,2473.6,6.75797187]
[1729938563441,0.05140789,2473.7,2473.6,8.34684054]
[1729938563835,0.05140789,2473.7,2473.6,3.42363202]
[1729938564040,0.05140789,2473.7,2473.6,4.60902707]
[1729938564240,0.05140789,2473.7,2473.6,3.55016911]
[1729938564640,0.05140789,2473.7,2473.6,7.81697767]
[1729938565040,0.05140789,2473.7,2473.6,4.60917767]
[1729938565240,0.05140789,2473.7,2473.6,7.81697767]
[1729938567646,0.05140789,2473.7,2473.6,8.34683778]
[1729938570962,0.05140789,2473.7,2473.6,8.34716207]
[1729938571364,0.05140789,2473.7,2473.6,8.3471614]
[1729938573551,0.05140789,2473.7,2473.6,8.22062498]
[1729938574562,0.05140789,2473.7,2473.6,8.34716271]
[1729938575663,0.05140789,2473.7,2473.6,8.34730171]
[1729938576066,0.05140789,2473.7,2473.6,5.13950171]
[1729938576266,0.05140789,2473.7,2473.6,8.22076398]
[1729938578661,0.05140789,2473.7,2473.6,5.01296398]
[1729938578966,0.05140789,2473.7,2473.6,8.22076398]
[1729938579764,0.05140789,2473.7,2473.6,5.01296398]
[1729938579967,0.05140789,2473.7,2473.6,8.22076398]
[1729938580472,0.05140789,2473.7,2473.6,8.22125692]
[1729938581873,0.05140789,2473.7,2473.6,5.01345692]
[1729938582369,0.05140789,2473.7,2473.6,8.22125692]
[1729938585272,0.05140789,2473.7,2473.6,8.22107408]
[1729938585572,0.05140789,2473.7,2473.6,8.34761183]
[1729938589269,0.05140789,2473.7,2473.6,6.75874316]
[1729938591273,0.05140789,2473.7,2473.6,3.55094316]
[1729938591470,0.05140789,2473.7,2473.6,6.75874316]
[1729938593285,0.05140789,2473.7,2473.6,8.87723473]
[1729938594380,0.05140789,2473.7,2473.6,6.75874316]
[1729938594785,0.87810789,2473.7,2473.6,6.75986631]
[1729938595984,0.87810789,2473.7,2473.6,3.42552856]
[1729938596190,0.87810789,2473.7,2473.6,3.5520696]
[1729938596490,0.87810789,2473.7,2473.6,6.7598696]
[1729938596882,0.87810789,2473.7,2473.6,3.5520696]
[1729938597092,0.87810789,2473.7,2473.6,6.7598696]
[1729938597282,0.87810789,2473.7,2473.6,5.10064284]
[1729938597776,0.87810789,2473.7,2473.6,6.75990232]
[1729938597975,0.87810789,2473.7,2473.6,5.10064284]
[1729938598787,0.87810789,2473.7,2473.6,6.75996012]
[1729938598984,2.19260969,2473.7,2473.6,5.44545832]
[1729938599392,2.19260969,2473.7,2473.6,3.78614104]
[1729938600689,2.59723969,2473.7,2473.6,3.78614104]
[1729938600891,2.59723969,2473.7,2473.6,0.12654104]
[1729938601188,2.19260969,2473.7,2473.5,1.06106411]
[1729938601388,1.7191518,2473.6,2473.5,1.06106411]
[1729938601585,1.7191518,2473.6,2473.5,1.18762159]
[1729938601887,1.3145018,2473.6,2473.5,1.18762159]
[1729938602088,1.36590969,2473.6,2473.5,1.18762159]
[1729938602283,1.36590969,2473.6,2473.5,2.84752468]
[1729938602592,1.36590969,2473.6,2473.5,2.84749925]
[1729938602792,1.77055969,2473.6,2473.5,2.84749925]
[1729938603089,1.36590969,2473.6,2473.5,1.18762159]
[1729938603593,1.36590969,2473.6,2473.5,1.06106411]
[1729938604093,1.36590969,2473.6,2473.5,1.18761843]
[1729938604294,1.36590969,2473.6,2473.4,2.37556591]
[1729938604990,0.05140789,2473.5,2473.4,2.37556591]
[1729938605291,0.05140789,2473.5,2473.4,5.70992029]
[1729938605482,0.05140789,2473.5,2473.4,7.36837764]
[1729938606092,0.05140789,2473.5,2473.4,4.64885618]
[1729938606290,0.05140789,2473.5,2473.4,7.89884805]
[1729938609192,0.05140789,2473.5,2473.4,7.36705173]
[1729938610993,0.05140789,2473.5,2473.4,6.30667748]
[1729938611195,0.05140789,2473.5,2473.4,7.3664067]
[1729938611696,1.36590969,2473.5,2473.4,5.7085854]
[1729938611897,1.78730969,2473.5,2473.4,5.7085854]
[1729938612088,0.47280789,2473.5,2473.4,5.7085854]
[1729938612696,0.47280789,2473.5,2473.4,5.58203102]
[1729938613487,0.47280789,2473.5,2473.4,7.23964314]
[1729938614296,0.47280789,2473.5,2473.4,7.23956442]
[1729938614297,0.05140789,2473.5,2473.4,7.23956442]
[1729938614496,0.05140789,2473.5,2473.4,5.58203102]
[1729938614697,0.05140789,2473.5,2473.4,7.23958923]
[1729938615598,0.05140789,2473.5,2473.4,7.23953153]
[1729938615795,0.05140789,2473.5,2473.4,5.92502973]
[1729938616004,0.05140789,2473.5,2473.4,7.23953153]
[1729938616598,0.05140789,2473.5,2473.4,5.58203102]
[1729938617206,0.05140789,2473.5,2473.4,7.23952123]
[1729938619500,0.05140789,2473.5,2473.4,7.36606946]
[1729938620002,0.05140789,2473.5,2473.4,6.30634024]
[1729938620500,0.05140789,2473.5,2473.4,6.30627214]
[1729938620700,0.05140789,2473.5,2473.4,7.23920198]
[1729938620901,0.05140789,2473.5,2473.4,7.36574932]
[1729938621501,0.05140789,2473.5,2473.4,7.36576467]
[1729938621700,0.05140789,2473.5,2473.4,6.30627125]
[1729938621902,0.05140789,2473.5,2473.4,7.89786742]
[1729938622404,0.05140789,2473.5,2473.4,8.30254742]
[1729938622700,3.4054818,2474.1,2473.6,0.40465]
[1729938623002,3.4054718,2474.1,2474.0,1.3145018]
[1729938623595,3.4054718,2474.1,2473.9,1.3145018]
[1729938623802,1.3145018,2474.0,2473.9,1.3145018]
[1729938623995,3.4054718,2474.1,2474.0,1.3145018]
[1729938625001,2.5704718,2474.1,2474.0,1.3145018]
[1729938625598,0.8514,2474.1,2474.0,1.3145018]
[1729938625795,2.5704718,2474.1,2474.0,1.3145018]
[1729938626299,1.25597,2474.1,2474.0,1.3145018]
[1729938627906,2.5704718,2474.1,2474.0,1.3145018]
[1729938628799,0.40459,2474.0,2473.9,1.3145018]
[1729938628995,1.3145018,2474.0,2473.9,1.3145018]
[1729938630510,1.7190818,2474.0,2473.8,1.7546018]
[1729938631808,1.7190818,2474.0,2473.9,3.2078]
[1729938632710,2.9798818,2474.1,2473.9,4.5223018]
[1729938635214,2.5753018,2474.1,2473.9,4.5223018]
[1729938635414,1.3145018,2474.1,2474.0,1.3145018]
[1729938635607,1.3145018,2474.1,2474.0,1.7619018]
[1729938636410,1.266,2474.4,2474.0,1.7619018]
[1729938636614,1.266,2474.4,2474.2,1.3145018]
[1729938636615,2.9850218,2474.4,2474.2,1.3145018]
[1729938638514,2.5805018,2474.4,2474.2,1.3145018]
[1729938638814,1.7190318,2474.3,2474.2,1.3145018]
[1729938639006,0.40455,2474.2,2474.1,1.7227018]
[1729938639210,0.40458,2474.1,2473.9,4.69175863]
[1729938639511,0.40458,2474.1,2474.0,1.3145018]
[1729938639512,0.85467,2474.1,2474.0,1.3145018]
[1729938641311,0.4355,2474.4,2474.0,1.7190818]
[1729938641312,2.1545318,2474.4,2474.0,1.7190818]
[1729938641517,2.1545318,2474.4,2474.1,1.3145018]
[1729938642011,2.1545318,2474.4,2474.2,0.4265]
[1729938642315,1.7500018,2474.4,2474.2,0.4265]
[1729938642515,0.40453,2474.3,2474.2,0.4265]
[1729938642912,1.7190318,2474.3,2474.2,0.4265]
[1729938643213,2.1373318,2474.3,2474.2,0.4265]
[1729938645710,2.1373318,2474.3,2474.2,3.6343]
[1729938646314,2.1545318,2474.4,2474.2,4.9488018]
[1729938647213,2.5647318,2474.4,2474.2,4.9488018]
[1729938648719,0.40453,2474.3,2474.2,4.9488018]
[1729938649118,2.1602018,2474.4,2474.2,4.9488018]
[1729938649119,0.84002,2474.4,2474.2,4.9488018]
[1729938652121,0.84002,2474.4,2474.2,1.7410018]
[1729938652514,0.84002,2474.4,2474.2,4.9488018]
[1729938653419,0.40453,2474.3,2474.2,4.9488018]
[1729938654517,0.40453,2474.3,2474.2,1.7410018]
[1729938654823,0.40453,2474.3,2474.2,4.9488018]
[1729938655615,0.40453,2474.3,2474.2,1.7410018]
[1729938656126,0.40453,2474.3,2474.2,4.9488018]
[1729938656818,0.40453,2474.3,2474.2,1.7410018]
[1729938657021,2.6090018,2474.4,2474.2,4.9488018]
[1729938657223,0.40452,2474.4,2474.2,4.9488018]
[1729938657418,0.40452,2474.4,2474.3,0.8854]
[1729938658120,1.2526,2474.7,2474.3,0.8854]
[1729938658323,1.7190018,2474.5,2474.3,0.8854]
[1729938661622,2.5539918,2474.6,2474.4,1.3145018]
[1729938662024,2.5539918,2474.6,2474.5,0.4364]
[1729938664726,2.5539918,2474.6,2474.5,1.7509018]
[1729938668836,1.2526,2474.7,2474.5,1.7509018]
[1729938669134,1.65708,2474.7,2474.6,1.3145018]
[1729938670632,2.5671018,2474.7,2474.5,1.7509018]
[1729938670833,0.40448,2474.6,2474.5,0.4364]
[1729938671025,1.7189818,2474.6,2474.5,0.4364]
[1729938675836,0.40448,2474.6,2474.5,0.4364]
[1729938676237,0.40448,2474.6,2474.5,1.7509018]
[1729938683847,0.40448,2474.6,2474.5,0.4364]
[1729938686047,0.40448,2474.6,2474.5,1.7509018]
[1729938692045,0.40448,2474.6,2474.5,4.9587018]
[1729938698350,3.2078,2475.2,2474.5,4.9587018]
[1729938698558,0.40443,2475.0,2474.9,1.3145018]
[1729938698755,0.40443,2475.0,2474.9,1.7293018]
[1729938699254,1.3145018,2475.2,2474.9,1.7293018]
[1729938699446,0.40436,2475.4,2475.1,4.5223018]
[1729938699650,0.40436,2475.4,2475.3,1.3145018]
[1729938700157,1.7188618,2475.4,2475.3,1.3145018]
[1729938700665,1.3145018,2475.4,2475.3,1.3145018]
[1729938702260,1.66565,2475.5,2475.3,1.3145018]
[1729938702261,2.9801518,2475.5,2475.3,1.3145018]
[1729938703247,2.9801518,2475.5,2475.3,4.5223018]
[1729938703956,2.5758018,2475.5,2475.3,4.5223018]
[1729938704160,1.23833,2475.6,2475.4,1.3145018]
[1729938704349,1.23833,2475.6,2475.5,2.2085018]
[1729938704554,2.1485018,2475.9,2475.5,2.2085018]
[1729938704855,0.4043,2475.8,2475.7,1.3145018]
[1729938705559,2.5527818,2475.9,2475.7,1.3145018]
[1729938706159,0.834,2475.9,2475.7,3.2078]
[1729938706354,1.23828,2475.9,2475.8,1.3145018]
[1729938706656,0.40429,2475.8,2475.7,4.5223018]
[1729938706858,1.7187918,2475.8,2475.7,4.5223018]
[1729938707061,2.9869918,2475.8,2475.7,4.5223018]
[1729938707863,0.40432,2475.7,2475.6,1.3145018]
[1729938708057,1.2682,2475.8,2475.6,1.3145018]
[1729938708363,1.6725,2475.8,2475.7,1.3145018]
[1729938709058,0.4043,2475.8,2475.7,1.3145018]
[1729938711859,2.1485018,2475.9,2475.7,1.3145018]
[1729938712061,2.1485018,2475.9,2475.8,1.3145018]
[1729938712264,2.5527718,2475.9,2475.8,1.3145018]
[1729938715265,2.1485018,2475.9,2475.6,3.6178]
[1729938715464,1.7188018,2475.7,2475.6,4.9323018]
[1729938716059,2.5633018,2475.7,2475.6,4.9323018]
[1729938717167,2.5633018,2475.7,2475.6,1.7245018]
[1729938719171,2.5633018,2475.7,2475.6,1.3145018]
[1729938720071,2.1590018,2475.7,2475.5,4.5223018]
[1729938720369,0.40432,2475.6,2475.5,4.5223018]
[1729938721570,1.7188218,2475.6,2475.5,3.2078]
[1729938722765,1.7188218,2475.6,2475.2,1.3145018]
[1729938722766,0.40437,2475.3,2475.2,1.3145018]
[1729938722969,1.3145018,2475.3,2475.1,3.2078]
[1729938723169,2.5865918,2475.2,2475.1,3.2078]
[1729938723371,3.0347918,2475.2,2475.1,3.2078]
[1729938724468,0.4044,2475.1,2475.0,1.7495018]
[1729938724969,0.4044,2475.1,2475.0,0.435]
[1729938725171,0.40442,2475.0,2474.9,1.3145018]
[1729938726076,1.7189218,2475.0,2474.9,1.3145018]
[1729938726379,0.40445,2474.8,2474.7,3.2078]
[1729938726573,1.7189518,2474.8,2474.7,4.5223018]
[1729938727176,2.9630518,2474.8,2474.7,4.5223018]
[1729938727780,1.2441,2474.8,2474.7,4.5223018]
[1729938728289,1.64855,2474.8,2474.7,4.5223018]
[1729938728673,1.2441,2474.8,2474.7,4.5223018]
[1729938730878,1.64855,2474.8,2474.7,4.5223018]
[1729938731182,1.2441,2474.8,2474.7,4.5223018]
[1729938733771,1.64855,2474.8,2474.7,4.5223018]
[1729938734081,2.9630518,2474.8,2474.7,3.2078]
[1729938734884,2.9630518,2474.8,2474.6,1.3145018]
[1729938734885,2.9630518,2474.8,2474.6,4.5223018]
[1729938735077,1.7189718,2474.7,2474.6,3.2078]
[1729938735277,0.40448,2474.6,2474.5,0.4342]
[1729938735581,0.40451,2474.5,2474.4,0.4175]
[1729938735779,2.1576118,2474.5,2474.4,0.4175]
[1729938737184,2.1576118,2474.5,2474.4,1.7320018]
[1729938745683,2.9916118,2474.5,2474.4,1.7320018]
[1729938746093,1.23851,2474.5,2474.4,1.7320018]
[1729938746395,0.834,2474.5,2474.4,1.7320018]
[1729938747388,0.40449,2474.6,2474.4,1.7320018]
[1729938747589,0.834,2474.6,2474.5,4.9487018]
[1729938748793,0.834,2474.6,2474.5,1.7409018]
[1729938749000,0.40446,2474.8,2474.5,4.9487018]
[1729938749200,0.40446,2474.8,2474.7,1.3145018]
[1729938749201,1.23846,2474.8,2474.7,1.3145018]
[1729938749700,2.5529618,2474.8,2474.7,1.3145018]
[1729938750501,1.23846,2474.8,2474.7,1.3145018]
[1729938751095,0.40446,2474.8,2474.7,1.3145018]
[1729938751401,0.834,2474.8,2474.7,1.3145018]
[1729938751590,2.1485018,2474.8,2474.5,3.2078]
[1729938751893,2.1485018,2474.8,2474.1,1.3145018]
[1729938751894,0.40456,2474.2,2474.1,1.3145018]
[1729938752093,1.7190618,2474.2,2474.1,1.3145018]
[1729938753799,0.40456,2474.2,2474.1,1.3145018]
[1729938755103,0.40456,2474.2,2474.0,1.3145018]
[1729938757291,0.40455,2474.2,2474.0,1.3145018]
[1729938758405,1.7190518,2474.2,2474.0,1.3145018]
[1729938760401,0.40457,2474.1,2474.0,1.3145018]
[1729938760708,0.40457,2474.1,2473.9,1.7511018]
[1729938761807,2.1380618,2474.2,2473.9,1.7511018]
[1729938762107,0.40457,2474.1,2473.9,1.7511018]
[1729938763909,1.7190618,2474.2,2474.0,1.3145018]
[1729938768113,1.7190618,2474.2,2473.9,4.9589018]
[1729938769111,0.40458,2474.1,2473.9,4.9589018]
[1729938770019,0.40458,2474.1,2473.9,3.6444]
[1729938770921,1.7190818,2474.1,2473.9,3.6444]
[1729938771116,1.3145018,2474.1,2473.9,3.6444]
[1729938771320,1.7190818,2474.0,2473.9,3.6444]
[1729938771612,1.7190818,2474.0,2473.9,3.2078]
[1729938771819,0.40464,2473.7,2473.6,4.9494018]
[1729938772014,1.7191418,2473.7,2473.6,4.9494018]
[1729938772211,1.7191418,2473.7,2473.6,3.6349]
[1729938772411,2.5774418,2473.7,2473.6,3.6349]
[1729938772720,2.5774418,2473.7,2473.6,0.4271]
[1729938776019,2.5774418,2473.7,2473.5,1.3145018]
[1729938776218,1.7402018,2473.6,2473.5,1.3145018]
[1729938776732,2.1448518,2473.6,2473.5,1.3145018]
[1729938777222,1.7402018,2473.6,2473.3,3.2078]
[1729938777522,1.3145018,2473.4,2473.3,3.2078]
[1729938777910,1.7191818,2473.4,2473.3,3.2078]
[1729938778518,1.3145018,2473.4,2473.3,3.2078]
[1729938779925,1.7191818,2473.4,2473.3,3.2078]
[1729938780418,1.7191818,2473.4,2473.2,1.7451018]
[1729938780818,1.3145018,2473.5,2473.3,1.3145018]
[1729938781021,1.7191718,2473.5,2473.3,2.1595018]
[1729938783127,1.3145018,2473.5,2473.3,2.1595018]
[1729938783329,0.40468,2473.4,2473.3,2.1595018]
[1729938783713,1.7191718,2473.5,2473.3,2.1595018]
[1729938784423,0.40468,2473.4,2473.3,2.1595018]
[1729938785824,1.7191818,2473.4,2473.3,0.845]
[1729938787426,1.3145018,2473.4,2473.3,0.845]
[1729938787624,0.40467,2473.5,2473.3,0.845]
[1729938787823,1.3145018,2473.4,2473.3,0.845]
[1729938788023,1.3145018,2473.4,2473.3,2.1595018]
[1729938788223,2.5531718,2473.5,2473.3,2.1595018]
[1729938788426,1.3145018,2473.4,2473.3,2.1595018]
[1729938790430,1.3145018,2473.4,2473.3,5.3673018]
[1729938791928,1.3145018,2473.4,2473.3,2.1595018]
[1729938792233,1.3145018,2473.4,2473.3,5.3673018]
[1729938792433,1.3145018,2473.4,2473.3,2.1595018]
[1729938793334,1.3145018,2473.4,2473.3,5.3673018]
[1729938794332,1.7191818,2473.4,2473.3,5.3673018]
[1729938795239,1.7191818,2473.4,2473.3,2.1595018]
[1729938795834,1.7191818,2473.4,2473.3,5.3673018]
[1729938796630,1.3145018,2473.4,2473.3,5.3673018]
[1729938797840,1.3145018,2473.4,2473.3,2.1595018]
[1729938798045,1.3145018,2473.4,2473.3,5.3673018]
[1729938799137,1.7191818,2473.4,2473.3,5.3673018]
[1729938799742,1.7191818,2473.4,2473.3,3.2078]
[1729938799948,0.4047,2473.3,2473.2,0.4306]
[1729938800148,2.9819018,2473.3,2473.2,0.4306]
[1729938800350,0.40473,2473.1,2473.0,3.2078]
[1729938800552,1.7192318,2473.1,2473.0,3.2078]
[1729938808146,1.3145018,2473.1,2472.8,3.2078]
[1729938808355,1.7192718,2472.9,2472.8,3.2078]
[1729938808958,2.5633718,2472.9,2472.8,3.2078]
[1729938810669,2.1485018,2472.9,2472.8,3.2078]
[1729938810954,2.1485018,2472.9,2472.8,4.5223018]
[1729938811158,0.40475,2473.0,2472.8,4.5223018]
[1729938811159,1.7192518,2473.0,2472.8,4.5223018]
[1729938811347,2.5532518,2473.0,2472.9,0.872]
[1729938811551,2.1485018,2473.0,2472.9,1.3152]
[1729938812349,1.2821,2473.3,2472.9,1.3152]
[1729938812549,1.3145018,2473.0,2472.9,1.3152]
[1729938817959,1.3145018,2473.0,2472.9,4.523]
[1729938818852,1.2488,2473.3,2472.9,6.2422618]
[1729938819052,1.3145018,2473.2,2473.1,1.3145018]
[1729938819663,1.3145018,2473.2,2473.0,1.3145018]
[1729938822261,1.3145018,2473.2,2473.0,4.5223018]
[1729938824062,0.834,2473.3,2473.1,1.3145018]
[1729938824260,2.1485018,2473.3,2473.1,1.3145018]
[1729938824468,2.1485018,2473.3,2473.2,0.4169]
[1729938824969,1.3145018,2473.3,2473.2,0.4169]
[1729938825158,0.834,2473.4,2473.2,1.7314018]
[1729938825359,2.1485018,2473.4,2473.3,0.4301]
[1729938825668,2.1485018,2473.4,2473.3,0.8559]
[1729938829773,1.3145018,2473.4,2473.3,0.8559]
[1729938832170,1.7191818,2473.4,2473.3,0.8559]
[1729938833369,1.3145018,2473.4,2473.3,0.8559]
[1729938836077,1.7191818,2473.4,2473.2,4.9392018]
[1729938836371,2.1912018,2473.3,2473.2,4.9392018]
[1729938836767,2.1912018,2473.3,2473.2,3.6247]
[1729938838179,2.1912018,2473.3,2473.2,0.4169]
[1729938838472,2.1912018,2473.3,2473.2,3.6247]
[1729938839971,2.5959018,2473.3,2473.2,3.2078]
[1729938840173,2.6094018,2473.3,2472.8,3.6173]
[1729938840374,1.7192618,2472.9,2472.8,3.6173]
[1729938840570,1.3145018,2472.9,2472.8,3.6173]
[1729938840874,1.3145018,2473.0,2472.8,4.9318018]
[1729938841076,1.3145018,2473.0,2472.9,1.3145018]
[1729938842567,1.3145018,2473.0,2472.8,3.6173]
[1729938842874,1.3145018,2473.1,2472.9,1.3145018]
[1729938843471,1.2949,2473.3,2472.9,1.7192618]
[1729938843669,1.3145018,2473.2,2473.0,1.3145018]
[1729938844167,1.3145018,2473.2,2473.1,0.422]
[1729938846271,1.3145018,2473.2,2473.0,3.2078]
[1729938846475,1.3145018,2473.1,2473.0,3.2078]
[1729938846869,1.7192318,2473.1,2473.0,3.2078]
[1729938849073,1.7192318,2473.1,2472.7,5.8276018]
[1729938849277,1.3145018,2472.9,2472.7,5.8276018]
[1729938850480,2.5667718,2472.9,2472.7,5.8276018]
[1729938850890,2.5667718,2472.9,2472.7,2.6198018]
[1729938851084,2.5667718,2472.9,2472.7,5.8276018]
[1729938851384,2.1620018,2472.9,2472.7,5.8276018]
[1729938852084,2.5667618,2472.9,2472.7,4.9417018]
[1729938852484,2.1620018,2472.9,2472.7,4.9417018]
[1729938852988,0.8475,2472.9,2472.8,1.3145018]
[1729938855792,0.40472,2473.2,2472.8,1.7192718]
[1729938855983,1.3145018,2473.0,2472.8,1.7192718]
[1729938856185,1.3145018,2473.0,2472.9,3.2078]
[1729938857291,1.3145018,2473.0,2472.8,1.7192718]
[1729938857591,1.3145018,2473.0,2472.9,3.2078]
[1729938858593,1.3145018,2473.0,2472.9,3.61256]
[1729938859092,1.3145018,2473.0,2472.8,1.7192718]
[1729938859292,1.3145018,2473.0,2472.9,3.2078]
[1729938860085,1.3145018,2473.0,2472.9,3.61256]
[1729938860286,1.3145018,2473.0,2472.9,3.2078]
[1729938861795,1.3145018,2473.0,2472.8,1.7192818]
[1729938861996,1.3145018,2473.0,2472.9,3.2078]
[1729938862798,1.3145018,2473.0,2472.8,1.7192718]
[1729938863094,1.3145018,2473.0,2472.9,3.2078]
[1729938863794,1.3145018,2473.0,2472.8,1.7192718]
[1729938864187,1.3145018,2473.0,2472.9,3.2078]
[1729938865990,1.3145018,2473.1,2472.9,4.5223018]
[1729938866295,2.1485018,2473.2,2473.0,2.6185318]
[1729938866496,2.1485018,2473.2,2473.0,3.0421418]
[1729938866693,2.1485018,2473.2,2473.0,2.6374018]
[1729938866898,2.1485018,2473.2,2473.1,0.40473]
[1729938867092,2.1485018,2473.2,2473.0,3.0421418]
[1729938867395,1.3145018,2473.2,2473.0,3.0421418]
[1729938868191,1.3145018,2473.2,2473.0,2.6374018]
[1729938868385,1.3145018,2473.3,2473.2,0.40471]
[1729938868589,1.3145018,2473.3,2473.2,4.9270118]
[1729938868789,0.834,2473.4,2473.2,4.9270118]
[1729938868990,1.3145018,2473.4,2473.3,1.3145018]
[1729938871999,1.3145018,2473.4,2473.3,4.5223018]
[1729938875800,1.3145018,2473.4,2473.3,3.2078]
[1729938876807,1.3145018,2473.4,2473.2,1.3145018]
[1729938877005,1.3145018,2473.4,2473.3,3.2078]
[1729938877703,2.1591018,2473.4,2473.3,3.2078]
[1729938879015,0.40472,2473.2,2473.0,3.2078]
[1729938879303,1.3145018,2473.1,2473.0,3.2078]
[1729938879607,1.7449018,2473.1,2472.7,3.2078]
[1729938879806,1.3145018,2472.9,2472.7,3.2078]
[1729938880001,1.3145018,2472.9,2472.7,4.5223018]
[1729938881910,1.3145018,2472.9,2472.8,3.2078]
[1729938882111,3.4513518,2473.0,2472.8,3.2078]
[1729938882308,3.4513518,2473.0,2472.8,3.6377]
[1729938883911,3.0466018,2473.0,2472.8,3.6377]
[1729938884212,1.3145018,2472.9,2472.8,3.6377]
[1729938884508,1.3145018,2472.9,2472.8,3.2078]
[1729938885302,1.7192618,2472.9,2472.8,3.2078]
[1729938885502,1.3145018,2472.9,2472.8,3.2078]
[1729938885708,1.3145018,2472.9,2472.8,4.5223018]
[1729938885909,1.7192618,2472.9,2472.8,4.5223018]
[1729938886912,1.7192618,2472.9,2472.8,3.2078]
[1729938889612,0.40479,2472.8,2472.6,3.6509]
[1729938889916,1.3145018,2472.7,2472.6,3.6509]
[1729938891116,1.3145018,2472.7,2472.6,4.9654018]
[1729938892111,1.3145018,2472.7,2472.6,1.7576018]
[1729938892506,1.3145018,2472.7,2472.6,4.9654018]
[1729938893025,1.3145018,2472.7,2472.6,1.7576018]
[1729938893213,1.3145018,2472.7,2472.6,4.9654018]
[1729938893912,1.3145018,2472.7,2472.6,1.7576018]
[1729938894120,1.3145018,2472.7,2472.6,4.9654018]
[1729938894313,1.3145018,2472.7,2472.6,3.6509]
[1729938894714,1.3145018,2472.7,2472.6,4.9654018]
[1729938897120,1.7465018,2472.8,2472.6,4.9654018]
[1729938897324,1.3145018,2472.8,2472.6,4.9654018]
[1729938897713,1.3145018,2472.7,2472.6,4.9654018]
[1729938905330,1.3145018,2472.7,2472.6,1.7576018]
[1729938905621,1.3145018,2472.7,2472.6,4.9654018]
[1729938905825,1.3145018,2472.7,2472.6,3.6509]
[1729938908524,1.7193018,2472.7,2472.6,3.6509]
[1729938908723,1.3145018,2472.7,2472.6,3.6509]
[1729938909627,1.7193018,2472.7,2472.6,3.6509]
[1729938910227,0.40483,2472.5,2472.4,0.8414]
[1729938910435,1.7193318,2472.5,2472.4,0.8414]
[1729938910732,1.3145018,2472.5,2472.4,0.8414]
[1729938911033,1.7644018,2472.5,2472.4,0.8414]
[1729938912027,2.1692318,2472.5,2472.4,0.8414]
[1729938912433,2.5984018,2472.5,2472.4,0.8414]
[1729938913230,2.5984018,2472.5,2472.3,3.6263]
[1729938913431,1.3145018,2472.4,2472.3,3.6263]
[1729938917543,1.3145018,2472.4,2472.3,4.9408018]
[1729938917937,1.3145018,2472.4,2472.3,5.3456618]
[1729938918145,2.1485018,2472.5,2472.3,5.3456618]
[1729938918341,2.1485018,2472.5,2472.4,1.3145018]
[1729938918639,2.1485018,2472.5,2472.4,1.7193418]
[1729938919047,2.1485018,2472.6,2472.4,1.7193418]
[1729938919347,2.1485018,2472.6,2472.5,0.8579]
[1729938921247,0.834,2472.7,2472.5,5.3802018]
[1729938921443,0.834,2472.7,2472.6,1.3145018]
[1729938921647,0.834,2472.7,2472.6,1.7254018]
[1729938921842,2.1485018,2472.7,2472.6,0.4109]
[1729938924642,0.834,2472.7,2472.6,0.4109]
[1729938924846,0.834,2472.7,2472.6,1.7254018]
[1729938925242,0.834,2472.7,2472.6,0.4109]
[1729938925843,2.1485018,2472.7,2472.6,0.4109]
[1729938929751,2.5621018,2472.7,2472.6,0.4109]
[1729938930555,2.9669018,2472.7,2472.6,0.4109]
[1729938931156,2.9669018,2472.7,2472.5,3.2078]
[1729938931457,1.3145018,2472.6,2472.5,3.2078]
[1729938931645,1.7193118,2472.6,2472.4,1.48502582]